fUSD/lending_fUSD_20241107
["ID","MTS","AMOUNT","RATE_DAILY","PERIOD"]
[341528837,1730961096776,-530.84399815,0.00032876,14]
[341528838,1730961096787,-500.0,0.00032876,14]
[341528839,1730961096796,-409.65401034,0.00032876,14]
[341528840,1730961096807,-151.0,0.00032876,7]
[341528841,1730961096816,-151.0,0.00032876,7]
[341528842,1730961096826,-151.0,0.00032876,7]
[341528843,1730961096836,-151.0,0.00032876,7]
[341528844,1730961096847,-151.0,0.00032876,7]
[341528845,1730961096857,-151.0,0.00032876,7]
[341528846,1730961096867,-151.0,0.00032876,7]
[341528847,1730961096877,-151.0,0.00032876,7]
[341528848,1730961096887,-151.0,0.00032876,7]
[341528849,1730961096897,-262.226434,0.00032876,7]
[341528850,1730961096907,-500.0,0.00032876,14]
[341528851,1730961096917,-224.034141,0.00032876,7]
[341528852,1730961096928,-224.034141,0.00032876,7]
[341528853,1730961096938,-224.034141,0.00032876,7]
[341528854,1730961096948,-224.034141,0.00032876,7]
[341528855,1730961096958,-224.034141,0.00032876,7]
[341528856,1730961096967,-224.034141,0.00032876,7]
[341528857,1730961096977,-224.034141,0.00032876,7]
[341528858,1730961096987,-224.034141,0.00032876,7]
[341528859,1730961096997,-442.45622363,0.00032876,14]
[341528860,1730961097007,-224.034141,0.00032876,7]
[341528861,1730961097017,-224.034141,0.00032876,7]
[341528862,1730961097026,-500.0,0.00032876,14]
[341528863,1730961097036,-224.034141,0.00032876,7]
[341528864,1730961097046,-224.034141,0.00032876,7]
[341528865,1730961097056,-224.034141,0.00032876,7]
[341528866,1730961097066,-224.034141,0.00032876,7]
[341528867,1730961097075,-224.034141,0.00032876,7]
[341528868,1730961097085,-224.034142,0.00032876,7]
[341528869,1730961097095,-500.0,0.00032876,14]
[341528870,1730961097104,-353.84829724,0.00032876,7]
[341528871,1730961097115,-500.0,0.00032876,14]
[341528872,1730961097124,-151.0,0.00032876,7]
[341528873,1730961097135,-435.33322599,0.00032876,14]
[341528874,1730961097145,-502.83063315,0.00032876,14]
[341528875,1730961097155,-500.0,0.00032876,14]
[341528876,1730961097167,-500.0,0.00032876,14]
[341528877,1730961097177,-565.94,0.00032876,14]
[341528878,1730961097187,-501.18861701,0.00032876,14]
[341528879,1730961097197,-500.0,0.00032876,14]
[341528880,1730961097207,-500.0,0.00032876,14]
[341528881,1730961097217,-500.0,0.00032876,14]
[341528882,1730961097227,-500.0,0.00032876,14]
[341528883,1730961097237,-520.89966014,0.00032876,14]
[341528884,1730961097248,-732.64,0.00032876,14]
[341528885,1730961097258,-500.0,0.00032876,14]
[341528886,1730961097268,-500.0,0.00032876,14]
[341528887,1730961097278,-646.64,0.00032876,14]
[341528888,1730961097289,-516.76630494,0.00032876,14]
[341528889,1730961097299,-513.14,0.00032876,14]
[341528890,1730961097309,-500.0,0.00032876,14]
[341528891,1730961097319,-500.0,0.00032876,14]
[341528892,1730961097332,-500.0,0.00032876,14]
[341528893,1730961097342,-500.0,0.00032876,14]
[341528894,1730961097352,-929.18,0.00032876,14]
[341528895,1730961097361,-595.53165034,0.00032876,14]
[341528896,1730961097371,-500.0,0.00032876,14]
[341528897,1730961097381,-601.45,0.00032876,14]
[341528898,1730961097391,-500.0,0.00032876,14]
[341528899,1730961097402,-500.0,0.00032876,14]
[341528900,1730961097412,-500.0,0.00032876,14]
[341528901,1730961097422,-500.0,0.00032876,14]
[341528902,1730961097431,-751.55,0.00032876,14]
[341528903,1730961097441,-500.0,0.00032876,5]
[341528904,1730961097451,-500.0,0.00032876,14]
[341528905,1730961097461,-960.75,0.00032876,14]
[341528906,1730961097472,-568.44,0.00032876,14]
[341528907,1730961097482,-753.6,0.00032876,14]
[341528908,1730961097719,-829.13,0.00032876,14]
[341528909,1730961097730,-500.0,0.00032876,14]
[341528910,1730961097741,-503.16170976,0.00032876,14]
[341528911,1730961097751,-1808.69,0.00032876,14]
[341528912,1730961097762,-1808.69,0.00032876,14]
[341528913,1730961097772,-1808.69,0.00032876,14]
[341528914,1730961097782,-1808.69,0.00032876,14]
[341528915,1730961097792,-1808.69,0.00032876,14]
[341528916,1730961097802,-1808.69,0.00032876,14]
[341528917,1730961097812,-503.96987103,0.00032876,14]
[341528918,1730961097821,-1808.69,0.00032876,14]
[341528919,1730961097831,-1808.69,0.00032876,14]
[341528920,1730961097841,-1808.69,0.00032876,14]
[341528921,1730961097851,-1808.69,0.00032876,14]
[341528922,1730961097861,-1808.69,0.00032876,14]
[341528923,1730961097871,-1808.69,0.00032876,14]
[341528924,1730961097881,-1808.69,0.00032876,14]
[341528925,1730961097891,-1808.69,0.00032876,14]
[341528926,1730961097900,-1808.69,0.00032876,14]
[341528927,1730961097910,-1808.69,0.00032876,14]
[341528928,1730961097920,-500.0,0.00032876,14]
[341528929,1730961097930,-744.04,0.00032876,14]
[341528930,1730961097941,-500.0,0.00032876,14]
[341528931,1730961097951,-500.0,0.00032876,14]
[341528932,1730961097961,-501.78169997,0.00032876,14]
[341528933,1730961097971,-500.0,0.00032876,14]
[341528934,1730961097980,-2107.76,0.00032876,14]
[341528935,1730961097990,-615.89,0.00032876,14]
[341528936,1730961097999,-519.45406791,0.00032876,14]
[341528937,1730961098009,-208.908888,0.00032876,7]
[341528938,1730961098018,-500.0,0.00032876,14]
[341528939,1730961098028,-500.0,0.00032876,14]
[341528940,1730961098040,-500.0,0.00032876,14]
[341528941,1730961098049,-500.0,0.00032876,14]
[341528942,1730961098059,-500.0,0.00032876,14]
[341528943,1730961098070,-500.0,0.00032876,14]
[341528944,1730961098080,-617.28,0.00032876,14]
[341528945,1730961098090,-500.0,0.00032876,2]
[341528946,1730961098100,-500.0,0.00032876,14]
[341528947,1730961098110,-500.0,0.00032876,14]
[341528948,1730961098120,-500.0,0.00032876,14]
[341528949,1730961098130,-500.0,0.00032876,14]
[341528950,1730961098139,-1098.83,0.00032876,14]
[341528951,1730961098149,-500.0,0.00032876,14]
[341528952,1730961098159,-902.62,0.00032876,14]
[341528953,1730961098169,-527.96,0.00032876,14]
[341528954,1730961098179,-500.0,0.00032876,14]
[341528955,1730961098189,-1348.0,0.00032876,14]
[341528956,1730961098199,-500.0,0.00032876,14]
[341528957,1730961098208,-500.0,0.00032876,14]
[341528958,1730961098218,-501.69461537,0.00032876,14]
[341528959,1730961098227,-500.0,0.00032876,14]
[341528960,1730961098237,-547.17455384,0.00032876,14]
[341528961,1730961098247,-500.0,0.00032876,14]
[341528962,1730961098256,-502.55693222,0.00032876,14]
[341528963,1730961098266,-410.67449431,0.00032876,14]
[341528964,1730961098276,-1761.07,0.00032876,14]
[341528965,1730961098287,-500.0,0.00032876,14]
[341528966,1730961098297,-1628.26,0.00032876,14]
[341528967,1730961098306,-500.0,0.00032876,14]
[341528968,1730961098316,-500.0,0.00032876,14]
[341528969,1730961098328,-502.17419171,0.00032876,14]
[341528970,1730961098338,-500.0,0.00032876,14]
[341528971,1730961098348,-250.0,0.00032876,14]
[341528972,1730961098357,-500.0,0.00032876,14]
[341528973,1730961098367,-500.0,0.00032876,14]
[341528974,1730961098378,-500.0,0.00032876,14]
[341528975,1730961098392,-500.55385939,0.00032876,14]
[341528976,1730961098403,-500.0,0.00032876,14]
[341528977,1730961098413,-1000.0,0.00032876,10]
[341528978,1730961098423,-830.25,0.00032876,14]
[341528979,1730961098433,-522.14380177,0.00032876,14]
[341528980,1730961098443,-500.0,0.00032876,14]
[341528981,1730961098453,-500.0,0.00032876,14]
[341528982,1730961098463,-500.0,0.00032876,14]
[341528983,1730961098473,-500.0,0.00032876,14]
[341528984,1730961098483,-500.0,0.00032876,14]
[341528985,1730961098493,-503.79899972,0.00032876,14]
[341528986,1730961098504,-500.0,0.00032876,14]
[341528987,1730961098514,-1341.32,0.00032876,14]
[341528988,1730961098524,-505.49512139,0.00032876,14]
[341528989,1730961098534,-500.0,0.00032876,14]
[341528990,1730961098546,-1632.54,0.00032876,14]
[341528991,1730961098555,-812.98,0.00032876,14]
[341528992,1730961098565,-500.0,0.00032876,14]
[341528993,1730961098575,-532.76196377,0.00032876,14]
[341528994,1730961098585,-500.0,0.00032876,14]
[341528995,1730961098595,-587.03937952,0.00032876,14]
[341528996,1730961098605,-500.0,0.00032876,14]
[341528997,1730961098615,-500.0,0.00032876,14]
[341528998,1730961098624,-500.0,0.00032876,14]
[341528999,1730961098634,-500.0,0.00032876,14]
[341529000,1730961098645,-500.0,0.00032876,14]
[341529001,1730961098655,-1417.97,0.00032876,14]
[341529002,1730961098665,-500.0,0.00032876,14]
[341529003,1730961098675,-502.00235016,0.00032876,14]
[341529004,1730961098685,-500.0,0.00032876,14]
[341529005,1730961098695,-500.0,0.00032876,14]
[341529006,1730961098705,-1181.05,0.00032876,14]
[341529007,1730961098715,-500.0,0.00032876,14]
[341529008,1730961098725,-500.0,0.00032876,14]
[341529009,1730961098735,-500.0,0.00032876,14]
[341529010,1730961098745,-732.61,0.00032876,14]
[341529011,1730961098755,-500.0,0.00032876,14]
[341529012,1730961098765,-500.0,0.00032876,14]
[341529013,1730961098775,-500.0,0.00032876,14]
[341529014,1730961098784,-500.0,0.00032876,14]
[341529015,1730961098796,-517.28,0.00032876,14]
[341529016,1730961098805,-502.55684977,0.00032876,14]
[341529017,1730961098814,-584.21,0.00032876,14]
[341529018,1730961098825,-500.0,0.00032876,14]
[341529019,1730961098834,-500.0,0.00032876,14]
[341529020,1730961098845,-500.0,0.00032876,14]
[341529021,1730961098855,-500.0,0.00032876,14]
[341529022,1730961098865,-1509.91,0.00032876,14]
[341529023,1730961098875,-500.0,0.00032876,14]
[341529024,1730961098885,-500.0,0.00032876,14]
[341529025,1730961098894,-511.16864014,0.00032876,14]
[341529026,1730961098904,-500.0,0.00032876,14]
[341529027,1730961098914,-500.0,0.00032876,14]
[341529028,1730961098924,-500.0,0.00032876,14]
[341529029,1730961098934,-503.7508693,0.00032876,14]
[341529030,1730961098944,-500.0,0.00032876,14]
[341529031,1730961098954,-204.91628972,0.00032876,14]
[341529032,1730961098963,-500.0,0.00032876,14]
[341529033,1730961098973,-500.0,0.00032876,14]
[341529034,1730961098982,-500.0,0.00032876,14]
[341529035,1730961098992,-500.0,0.00032876,14]
[341529036,1730961099002,-725.84,0.00032876,14]
[341529037,1730961099011,-867.86,0.00032876,14]
[341529038,1730961099021,-216.95137853,0.00032876,14]
[341529039,1730961099031,-500.0,0.00032876,14]
[341529040,1730961099044,-500.0,0.00032876,14]
[341529041,1730961099054,-500.0,0.00032876,14]
[341529042,1730961099063,-738.14,0.00032876,14]
[341529043,1730961099073,-500.0,0.00032876,14]
[341529044,1730961099083,-500.0,0.00032876,14]
[341529045,1730961099093,-657.56,0.00032876,14]
[341529046,1730961099102,-878.62,0.00032876,14]
[341529047,1730961099112,-500.0,0.00032876,14]
[341529048,1730961099121,-500.0,0.00032876,14]
[341529049,1730961099131,-501.43272029,0.00032876,14]
[341529050,1730961099141,-500.0,0.00032876,14]
[341529051,1730961099150,-500.0,0.00032876,14]
[341529052,1730961099160,-500.0,0.00032876,14]
[341529053,1730961099169,-500.0,0.00032876,14]
[341529054,1730961099178,-500.0,0.00032876,14]
[341529055,1730961099188,-501.97044629,0.00032876,14]
[341529056,1730961099197,-500.0,0.00032876,14]
[341529057,1730961099206,-578.91,0.00032876,14]
[341529058,1730961099216,-150.0,0.00032876,14]
[341529059,1730961099225,-500.0,0.00032876,14]
[341529060,1730961099235,-500.0,0.00032876,14]
[341529061,1730961099245,-750.98,0.00032876,14]
[341529062,1730961099255,-500.0,0.00032876,14]
[341529063,1730961099264,-596.93,0.00032876,14]
[341529064,1730961099274,-500.0,0.00032876,14]
[341529065,1730961099283,-500.0,0.00032876,14]
[341529066,1730961099299,-500.0,0.00032876,14]
[341529067,1730961099308,-501.50690776,0.00032876,14]
[341529068,1730961099317,-759.46,0.00032876,14]
[341529069,1730961099330,-500.0,0.00032876,14]
[341529070,1730961099339,-261.12069323,0.00032876,14]
[341529071,1730961099348,-500.0,0.00032876,14]
[341529072,1730961099358,-556.78165345,0.00032876,14]
[341529073,1730961099368,-500.0,0.00032876,14]
[341529074,1730961099378,-1743.24,0.00032876,14]
[341529075,1730961099388,-500.0,0.00032876,14]
[341529076,1730961099398,-504.36328466,0.00032876,14]
[341529077,1730961099409,-501.63906008,0.00032876,14]
[341529078,1730961099420,-151.0,0.00032876,7]
[341529079,1730961099429,-151.0,0.00032876,7]
[341529080,1730961099438,-493.39897448,0.00032876,14]
[341529081,1730961099448,-151.0,0.00032876,7]
[341529082,1730961099458,-303.35224407,0.00032876,14]
[341529083,1730961099467,-151.0,0.00032876,7]
[341529084,1730961099477,-151.0,0.00032876,7]
[341529085,1730961099487,-711.13,0.00032876,14]
[341529086,1730961099497,-500.0,0.00032876,14]
[341529087,1730961099505,-500.0,0.00032876,14]
[341529088,1730961099515,-500.0,0.00032876,14]
[341529089,1730961099524,-717.3,0.00032876,14]
[341529090,1730961099533,-500.0,0.00032876,14]
[341529091,1730961099545,-677.92,0.00032876,14]
[341529092,1730961099555,-151.0,0.00032876,7]
[341529093,1730961099564,-151.0,0.00032876,7]
[341529094,1730961099574,-151.0,0.00032876,7]
[341529095,1730961099583,-500.0,0.00032876,14]
[341529096,1730961099592,-293.441164,0.00032876,7]
[341529097,1730961099602,-500.0,0.00032876,14]
[341529098,1730961099612,-500.0,0.00032876,14]
[341529099,1730961099622,-526.80057197,0.00032876,14]
[341529100,1730961099632,-500.0,0.00032876,14]
[341529101,1730961099642,-500.0,0.00032876,14]
[341529102,1730961099653,-2230.48,0.00032876,14]
[341529103,1730961099663,-502.40838564,0.00032876,14]
[341529104,1730961099673,-500.0,0.00032876,14]
[341529105,1730961099684,-500.0,0.00032876,14]
[341529106,1730961099693,-724.25,0.00032876,14]
[341529107,1730961099703,-1208.59,0.00032876,14]
[341529108,1730961099713,-500.0,0.00032876,14]
[341529109,1730961099723,-500.0,0.00032876,14]
[341529110,1730961099733,-501.26546689,0.00032876,14]
[341529111,1730961099743,-500.0,0.00032876,14]
[341529112,1730961099753,-500.0,0.00032876,14]
[341529113,1730961099762,-500.0,0.00032876,14]
[341529114,1730961099772,-500.0,0.00032876,14]
[341529115,1730961099782,-500.0,0.00032876,14]
[341529116,1730961099794,-500.0,0.00032876,14]
[341529117,1730961099803,-600.48667595,0.00032876,14]
[341529118,1730961099813,-558.02,0.00032876,14]
[341529119,1730961099823,-500.0,0.00032876,14]
[341529120,1730961099832,-500.0,0.00032876,14]
[341529121,1730961099843,-151.0,0.00032876,7]
[341529122,1730961099852,-626.0,0.00032876,14]
[341529123,1730961099862,-151.0,0.00032876,7]
[341529124,1730961099872,-531.33,0.00032876,14]
[341529125,1730961099881,-500.0,0.00032876,14]
[341529126,1730961099891,-228.499219,0.00032876,7]
[341529127,1730961099901,-500.0,0.00032876,14]
[341529128,1730961099910,-219.13092572,0.00032876,14]
[341529129,1730961099920,-500.0,0.00032876,14]
[341529130,1730961099930,-502.01095415,0.00032876,14]
[341529131,1730961099940,-500.0,0.00032876,5]
[341529132,1730961099950,-500.0,0.00032876,14]
[341529133,1730961099960,-500.0,0.00032876,14]
[341529134,1730961099969,-500.0,0.00032876,14]
[341529135,1730961099978,-500.0,0.00032876,14]
[341529136,1730961099988,-500.0,0.00032876,14]
[341529137,1730961099997,-500.0,0.00032876,14]
[341529138,1730961100005,-500.0,0.00032876,14]
[341529139,1730961100015,-500.0,0.00032876,14]
[341529140,1730961100024,-500.0,0.00032876,14]
[341529141,1730961100033,-500.0,0.00032876,14]
[341529142,1730961100043,-2220.87,0.00032876,14]
[341529143,1730961100053,-500.27344017,0.00032876,14]
[341529144,1730961100148,-2220.87,0.00032876,14]
[341529145,1730961100158,-2220.87,0.00032876,14]
[341529146,1730961100167,-2220.87,0.00032876,14]
[341529147,1730961100176,-2220.87,0.00032876,14]
[341529148,1730961100185,-2220.87,0.00032876,14]
[341529149,1730961100194,-2220.87,0.00032876,14]
[341529150,1730961100203,-2220.87,0.00032876,14]
[341529151,1730961100212,-2220.87,0.00032876,14]
[341529152,1730961100221,-2220.87,0.00032876,14]
[341529153,1730961100230,-2220.87,0.00032876,14]
[341529154,1730961100239,-2220.87,0.00032876,14]
[341529155,1730961100248,-500.0,0.00032876,14]
[341529156,1730961100257,-2220.87,0.00032876,14]
[341529157,1730961100266,-2220.87,0.00032876,14]
[341529158,1730961100275,-500.0,0.00032876,14]
[341529159,1730961100285,-2220.87,0.00032876,14]
[341529160,1730961100298,-2220.87,0.00032876,14]
[341529161,1730961100307,-500.0,0.00032876,14]
[341529162,1730961100317,-1049.88,0.00032876,14]
[341529163,1730961100329,-502.00027116,0.00032876,14]
[341529164,1730961100339,-500.0,0.00032876,14]
[341529165,1730961100347,-500.0,0.00032876,14]
[341529166,1730961100356,-546.08,0.00032876,14]
[341529167,1730961100366,-1491.7,0.00032876,14]
[341529168,1730961100375,-500.0,0.00032876,14]
[341529169,1730961100384,-500.0,0.00032876,14]
[341529170,1730961100394,-510.02,0.00032876,14]
[341529171,1730961100404,-500.0,0.00032876,14]
[341529172,1730961100414,-447.71208714,0.00032876,14]
[341529173,1730961100423,-523.20759414,0.00032876,14]
[341529174,1730961100431,-1822.05,0.00032876,14]
[341529175,1730961100440,-500.0,0.00032876,14]
[341529176,1730961100449,-500.75036668,0.00032876,14]
[341529177,1730961100458,-500.0,0.00032876,14]
[341529178,1730961100467,-500.0,0.00032876,14]
[341529179,1730961100475,-500.0,0.00032876,14]
[341529180,1730961100484,-151.0,0.00032876,7]
[341529181,1730961100492,-558.79,0.00032876,14]
[341529182,1730961100501,-151.0,0.00032876,7]
[341529183,1730961100511,-151.0,0.00032876,7]
[341529184,1730961100520,-151.0,0.00032876,7]
[341529185,1730961100529,-269.907686,0.00032876,7]
[341529186,1730961100538,-500.0,0.00032876,14]
[341529187,1730961100550,-151.0,0.00032876,7]
[341529188,1730961100559,-151.0,0.00032876,7]
[341529189,1730961100569,-246.255,0.00032876,7]
[341529190,1730961100579,-500.0,0.00032876,14]
[341529191,1730961100589,-500.0,0.00032876,14]
[341529192,1730961100597,-1198.87,0.00032876,14]
[341529193,1730961100607,-500.0,0.00032876,14]
[341529194,1730961100616,-500.0,0.00032876,14]
[341529195,1730961100626,-581.1,0.00032876,14]
[341529196,1730961100636,-500.0,0.00032876,14]
[341529197,1730961100646,-500.0,0.00032876,14]
[341529198,1730961100655,-158.03949425,0.00032876,14]
[341529199,1730961100665,-1230.09,0.00032876,14]
[341529200,1730961100674,-500.0,0.00032876,14]
[341529201,1730961100683,-500.0,0.00032876,14]
[341529202,1730961100692,-500.0,0.00032876,14]
[341529203,1730961100701,-500.0,0.00032876,14]
[341529204,1730961100710,-319.7882154,0.00032876,14]
[341529205,1730961101225,-180.2117846,0.00032876,14]
[341529206,1730961101234,-502.15880175,0.00032876,14]
[341529207,1730961101244,-1015.0,0.00032876,14]
[341529208,1730961101252,-500.0,0.00032876,14]
[341529209,1730961101262,-500.0,0.00032876,14]
[341529210,1730961101271,-500.0,0.00032876,14]
[341529211,1730961101280,-500.0,0.00032876,14]
[341529212,1730961101291,-504.76554415,0.00032876,14]
[341529213,1730961101301,-212.36,0.00032876,7]
[341529214,1730961101311,-500.0,0.00032876,14]
[341529215,1730961101320,-500.0,0.00032876,14]
[341529216,1730961101334,-882.02,0.00032876,14]
[341529217,1730961101343,-500.0,0.00032876,14]
[341529218,1730961101353,-500.0,0.00032876,14]
[341529219,1730961101362,-500.0,0.00032876,14]
[341529220,1730961101372,-644.91,0.00032876,14]
[341529221,1730961101382,-500.0,0.00032876,14]
[341529222,1730961101391,-500.0,0.00032876,14]
[341529223,1730961101403,-500.0,0.00032876,14]
[341529224,1730961101413,-500.0,0.00032876,14]
[341529225,1730961101423,-500.0,0.00032876,14]
[341529226,1730961101433,-500.0,0.00032876,14]
[341529227,1730961101442,-151.0,0.00032876,7]
[341529228,1730961101452,-151.0,0.00032876,7]
[341529229,1730961101461,-500.0,0.00032876,14]
[341529230,1730961101471,-500.0,0.00032876,14]
[341529231,1730961101481,-151.0,0.00032876,7]
[341529232,1730961101490,-151.0,0.00032876,7]
[341529233,1730961101500,-151.0,0.00032876,7]
[341529234,1730961101509,-500.0,0.00032876,14]
[341529235,1730961101518,-500.0,0.00032876,14]
[341529236,1730961101528,-1291.960214,0.00032876,7]
[341529237,1730961101537,-1291.960214,0.00032876,7]
[341529238,1730961101548,-1291.960214,0.00032876,7]
[341529239,1730961101558,-1291.960214,0.00032876,7]
[341529240,1730961101567,-1291.960214,0.00032876,7]
[341529241,1730961101577,-1291.960214,0.00032876,7]
[341529242,1730961101587,-1291.960214,0.00032876,7]
[341529243,1730961101596,-1291.960214,0.00032876,7]
[341529244,1730961101605,-1291.960214,0.00032876,7]
[341529245,1730961101615,-1291.960213,0.00032876,7]
[341529246,1730961101624,-348.545858,0.00032876,7]
[341529247,1730961101634,-348.545858,0.00032876,7]
[341529248,1730961101644,-348.545858,0.00032876,7]
[341529249,1730961101654,-348.545858,0.00032876,7]
[341529250,1730961101664,-348.545858,0.00032876,7]
[341529251,1730961101674,-348.545858,0.00032876,7]
[341529252,1730961101683,-348.545858,0.00032876,7]
[341529253,1730961101693,-348.545858,0.00032876,7]
[341529254,1730961101701,-348.545858,0.00032876,7]
[341529255,1730961101711,-348.545865,0.00032876,7]
[341529256,1730961101721,-151.0,0.00032876,7]
[341529257,1730961101731,-151.0,0.00032876,7]
[341529258,1730961101741,-151.0,0.00032876,7]
[341529259,1730961101751,-151.0,0.00032876,7]
[341529260,1730961101761,-151.0,0.00032876,7]
[341529261,1730961101771,-1170.35,0.00032876,4]
[341529262,1730961101781,-500.0,0.00032876,2]
[341529263,1730961101791,-500.0,0.00032876,4]
[341529264,1730961101800,-500.0,0.00032876,4]
[341529265,1730961101811,-500.0,0.00032876,4]
[341529266,1730961101820,-500.0,0.00032876,4]
[341529267,1730961101830,-500.0,0.00032876,4]
[341529268,1730961101840,-500.0,0.00032876,4]
[341529269,1730961101849,-500.0,0.00032876,4]
[341529270,1730961101859,-500.0,0.00032876,4]
[341529271,1730961101869,-500.0,0.00032876,4]
[341529272,1730961101879,-500.0,0.00032876,4]
[341529273,1730961101889,-71036.0,0.00032877,120]
[341529274,1730961101898,-1000.0,0.00032877,7]
[341529275,1730961101908,-1000.0,0.00032877,7]
[341529276,1730961101917,-1000.0,0.00032877,7]
[341529277,1730961101927,-1000.0,0.00032877,7]
[341529278,1730961101936,-1000.0,0.00032877,7]
[341529279,1730961101947,-1000.0,0.00032877,7]
[341529280,1730961101957,-1000.0,0.00032877,7]
[341529281,1730961101966,-1000.0,0.00032877,7]
[341529282,1730961101974,-1000.0,0.00032877,7]
[341529283,1730961101983,-1000.0,0.00032877,7]
[341529284,1730961101993,-1000.0,0.00032877,7]
[341529285,1730961102002,-1000.0,0.00032877,7]
[341529286,1730961102013,-1000.0,0.00032877,7]
[341529287,1730961102022,-1000.0,0.00032877,7]
[341529288,1730961102032,-1000.0,0.00032877,7]
[341529289,1730961102041,-1000.0,0.00032877,7]
[341529290,1730961102051,-1000.0,0.00032877,7]
[341529291,1730961102060,-1000.0,0.00032877,7]
[341529292,1730961102070,-1000.0,0.00032877,7]
[341529293,1730961102079,-1000.0,0.00032877,7]
[341529294,1730961102089,-1000.0,0.00032877,7]
[341529295,1730961102098,-1000.0,0.00032877,7]
[341529296,1730961102108,-1000.0,0.00032877,7]
[341529297,1730961102117,-1000.0,0.00032877,7]
[341529298,1730961102127,-1000.0,0.00032877,7]
[341529299,1730961102137,-1000.0,0.00032877,7]
[341529300,1730961102146,-1000.0,0.00032877,7]
[341529301,1730961102156,-1000.0,0.00032877,7]
[341529302,1730961102165,-1000.0,0.00032877,7]
[341529303,1730961102175,-1000.0,0.00032877,7]
[341529304,1730961102185,-208.0,0.00032877,7]
[341529305,1730961102194,-196.85389268,0.00032877,2]
[341529306,1730961102206,-2000.0,0.00032877,2]
[341529307,1730961102215,-3369.6,0.00032894,4]
[341529308,1730961102225,-3369.6,0.00032894,4]
[341529309,1730961102234,-3369.6,0.00032894,4]
[341529310,1730961102245,-3369.6,0.00032894,4]
[341529311,1730961102254,-3369.71616444,0.00032894,4]
[341529312,1730961102264,-500.0,0.00032895,4]
[341529313,1730961102273,-1798.66,0.00032895,4]
[341529314,1730961102282,-616.56,0.00032895,4]
[341529315,1730961102293,-1736.99,0.00032895,4]
[341529316,1730961102303,-1565.03,0.00032895,4]
[341529317,1730961102313,-500.0,0.00032895,4]
[341529318,1730961102324,-596.19,0.00032895,4]
[341529319,1730961102337,-1179.75,0.00032895,4]
[341529320,1730961102346,-500.0,0.00032895,4]
[341529321,1730961102356,-1201.3,0.00032895,4]
[341529322,1730961102366,-1267.37,0.00032895,4]
[341529323,1730961102376,-500.0,0.00032895,4]
[341529324,1730961102386,-765.72,0.00032895,4]
[341529325,1730961102396,-1186.51,0.00032895,4]
[341529326,1730961102407,-581.31,0.00032895,4]
[341529327,1730961102417,-500.0,0.00032895,4]
[341529328,1730961102426,-1924.65,0.00032895,4]
[341529329,1730961102436,-2038.78,0.00032895,4]
[341529330,1730961102446,-500.0,0.00032895,4]
[341529331,1730961102455,-2484.08,0.00032895,4]
[341529332,1730961102465,-500.0,0.00032895,4]
[341529333,1730961102475,-2014.76,0.00032895,4]
[341529334,1730961102485,-1107.13,0.00032895,4]
[341529335,1730961102495,-500.0,0.00032895,4]
[341529336,1730961102504,-500.0,0.00032895,4]